lending/lending_fUSD_20250121
["ID","MTS","AMOUNT","RATE_DAILY","PERIOD"]
[349771340,1737419452914,-5900.42,0.00021685,7]
[349771341,1737419452923,-5900.42,0.00021685,7]
[349771342,1737419452932,-5900.42,0.00021685,7]
[349771343,1737419452942,-757.33,0.00021712,30]
[349771344,1737419452951,-500.0,0.00021714,2]
[349771345,1737419452960,-910.58,0.00021714,2]
[349771346,1737419452969,-589.02,0.00021714,2]
[349771347,1737419452979,-500.0,0.00021714,2]
[349771348,1737419452988,-500.0,0.00021714,2]
[349771349,1737419452997,-1187.29,0.00021714,2]
[349771350,1737419453006,-500.0,0.00021714,2]
[349771351,1737419453015,-370.441614,0.00021714,2]
[349771352,1737419453024,-855.81,0.00021714,2]
[349771353,1737419453034,-500.0,0.00021714,2]
[349771354,1737419453043,-626.503501,0.00021714,2]
[349771355,1737419453054,-500.0,0.00021714,2]
[349771356,1737419453063,-526.89,0.00021714,2]
[349771357,1737419453072,-1426.85,0.00021714,2]
[349771358,1737419453081,-713.77,0.00021714,2]
[349771359,1737419453091,-1128.17,0.00021714,2]
[349771360,1737419453100,-603.78,0.00021714,2]
[349771361,1737419453109,-155.24774,0.00021714,2]
[349771362,1737419453120,-500.0,0.00021714,2]
[349771363,1737419453130,-500.0,0.00021714,2]
[349771364,1737419453140,-2410.56,0.00021714,2]
[349771365,1737419453149,-229.605329,0.00021714,2]
[349771366,1737419453159,-1787.76,0.00021714,2]
[349771367,1737419453169,-1214.36,0.00021714,2]
[349771368,1737419453178,-904.45,0.00021714,2]
[349771369,1737419453187,-1963.56,0.00021714,2]
[349771370,1737419453197,-2104.66,0.00021714,2]
[349771371,1737419453206,-523.46,0.00021714,2]
[349771372,1737419453216,-1392.11,0.00021714,2]
[349771373,1737419453225,-1119.74,0.00021714,2]
[349771374,1737419453235,-159.243379,0.00021714,2]
[349771375,1737419453244,-2596.32,0.00021714,2]
[349771376,1737419453253,-1001.31,0.00021714,2]
[349771377,1737419453262,-154.234305,0.00021714,2]
[349771378,1737419453272,-209.023691,0.00021714,2]
[349771379,1737419453281,-158.502983,0.00021714,2]
[349771380,1737419453291,-1158.41,0.00021714,2]
[349771381,1737419453300,-909.85,0.00021714,2]
[349771382,1737419453309,-500.0,0.00021715,2]
[349771383,1737419453318,-500.0,0.00021715,2]
[349771384,1737419453327,-500.0,0.00021715,2]
[349771385,1737419453336,-500.0,0.00021715,2]
[349771386,1737419453347,-217.65301949,0.00021715,2]
[349771387,1737419453358,-500.0,0.00021715,2]
[349771388,1737419453368,-500.0,0.00021715,2]
[349771389,1737419453379,-500.0,0.00021715,2]
[349771390,1737419453389,-500.0,0.00021715,2]
[349771391,1737419453399,-500.0,0.00021715,2]
[349771392,1737419453408,-500.0,0.00021715,2]
[349771393,1737419453418,-500.0,0.00021715,2]
[349771394,1737419453427,-222.23926154,0.00021716,2]
[349771395,1737419453437,-200.0,0.00021725,2]
[349771396,1737419453446,-99113.27939619,0.00021732,2]
[349771397,1737419453455,-4562.12429357,0.00021751,2]
[349771398,1737419453464,-6075.81539515,0.00021752,2]
[349771399,1737419453474,-4562.12429357,0.00021765,2]
[349771400,1737419453483,-8966.55933331,0.00021767,2]
[349771401,1737419453492,-6075.81539515,0.00021767,2]
[349771402,1737419453501,-134396.17772872,0.0002178,2]
[349771403,1737419453510,-8966.55933331,0.00021781,2]
[349771404,1737419453520,-5946.89766724,0.00021785,2]
[349771405,1737419453529,-200.0,0.00021789,2]
[349771406,1737419453538,-500.0,0.00021789,2]
[349771407,1737419453552,-500.0,0.00021789,2]
[349771408,1737419453567,-888.99906049,0.00021789,2]
[349771409,1737419453581,-4562.12429357,0.0002179,2]
[349771410,1737419453593,-6075.81539515,0.00021791,2]
[349771411,1737419453608,-5946.89766724,0.00021794,2]
[349771412,1737419453621,-99113.27939619,0.00021797,2]
[349771413,1737419453635,-245774.57996052,0.000218,2]
[349771414,1737419453650,-99113.27939619,0.00021801,2]
[349771415,1737419453665,-222.23926153,0.00021808,2]
[349771416,1737419453679,-200.0,0.00021813,2]
[349771417,1737419453690,-429.91334377,0.00021816,2]
[349771418,1737419453703,-208.0,0.0002182,2]
[349771419,1737419453717,-211.0,0.0002182,2]
[349771420,1737419453730,-500.0,0.00021824,2]
[349771421,1737419453744,-4562.12429357,0.00021832,2]
[349771422,1737419453758,-8966.55933331,0.00021833,2]
[349771423,1737419453772,-8966.55933331,0.00021836,2]
[349771424,1737419453784,-6075.81539515,0.00021841,2]
[349771425,1737419453799,-5946.89766724,0.00021841,2]
[349771426,1737419453812,-99113.27939619,0.00021842,2]
[349771427,1737419453826,-200.0,0.00021851,2]
[349771428,1737419453838,-5946.89766724,0.00021854,2]
[349771429,1737419453853,-99113.27939619,0.00021859,2]
[349771430,1737419453870,-4562.12429357,0.00021859,2]
[349771431,1737419453884,-200.0,0.00021864,2]
[349771432,1737419453896,-5946.89766724,0.00021871,2]
[349771433,1737419453907,-1999.999999,0.00021874,3]
[349771434,1737419453920,-6075.81539515,0.00021883,2]
[349771435,1737419453935,-500.0,0.00021888,2]
[349771436,1737419453946,-500.0,0.00021888,2]
[349771437,1737419453956,-500.0,0.00021888,2]
[349771438,1737419453967,-564.41,0.00021888,2]
[349771439,1737419453980,-500.0,0.00021888,2]
[349771440,1737419453994,-500.0,0.00021888,2]
[349771441,1737419454006,-500.0,0.00021888,2]
[349771442,1737419454017,-500.0,0.00021888,2]
[349771443,1737419454029,-594.86346554,0.00021888,2]
[349771444,1737419454040,-500.0,0.00021888,2]
[349771445,1737419454052,-500.0,0.00021888,2]
[349771446,1737419454064,-2184.25,0.00021888,2]
[349771447,1737419454075,-500.0,0.00021888,2]
[349771448,1737419454088,-500.0,0.00021888,2]
[349771449,1737419454099,-3209.35,0.00021888,2]
[349771450,1737419454112,-500.0,0.00021888,2]
[349771451,1737419454124,-500.0,0.00021888,2]
[349771452,1737419454139,-500.0,0.00021888,2]
[349771453,1737419454150,-500.0,0.00021888,2]
[349771454,1737419454162,-500.0,0.00021888,2]
[349771455,1737419454174,-2028.93,0.00021888,2]
[349771456,1737419454186,-500.0,0.00021888,2]
[349771457,1737419454197,-500.0,0.00021888,2]
[349771458,1737419454209,-500.0,0.00021888,2]
[349771459,1737419454221,-543.51,0.00021888,2]
[349771460,1737419454232,-1683.76,0.00021888,2]
[349771461,1737419454244,-500.0,0.00021888,2]
[349771462,1737419454256,-500.0,0.00021888,2]
[349771463,1737419454268,-500.0,0.00021888,2]
[349771464,1737419454281,-500.0,0.00021888,2]
[349771465,1737419454292,-500.0,0.00021888,2]
[349771466,1737419454304,-500.0,0.00021889,2]
[349771467,1737419454315,-588.74332354,0.00021889,2]
[349771468,1737419454327,-338.87518063,0.00021889,2]
[349771469,1737419454339,-215.98477962,0.00021889,2]
[349771470,1737419454351,-500.0,0.00021889,2]
[349771471,1737419454363,-500.0,0.00021889,2]
[349771472,1737419454375,-500.0,0.00021889,2]
[349771473,1737419454393,-565.48,0.00021889,2]
[349771474,1737419454404,-500.0,0.00021889,2]
[349771475,1737419454416,-1097.21,0.00021889,2]
[349771476,1737419454427,-2424.54,0.00021889,2]
[349771477,1737419454439,-732.06,0.00021889,2]
[349771478,1737419454450,-500.0,0.00021889,2]
[349771479,1737419454462,-500.0,0.00021889,2]
[349771480,1737419454475,-1674.8,0.00021889,2]
[349771481,1737419454486,-500.0,0.00021889,2]
[349771482,1737419454498,-908.71,0.00021889,2]
[349771483,1737419454510,-1534.82,0.00021889,2]
[349771484,1737419454527,-500.0,0.00021889,2]
[349771485,1737419454539,-950.83,0.00021889,2]
[349771486,1737419454551,-164.1,0.00021889,2]
[349771487,1737419454564,-748.94,0.00021889,2]
[349771488,1737419454575,-1112.81,0.00021889,2]
[349771489,1737419454586,-527.23,0.00021889,2]
[349771490,1737419454599,-847.73,0.00021889,2]
[349771491,1737419454611,-2428.48,0.00021889,2]
[349771492,1737419454623,-1119.66,0.00021889,2]
[349771493,1737419454638,-1036.96,0.00021889,2]
[349771494,1737419454650,-500.0,0.00021889,2]
[349771495,1737419454662,-1562.21,0.00021889,2]
[349771496,1737419454674,-1000.0,0.00021889,2]
[349771497,1737419454685,-1223.32,0.00021889,2]
[349771498,1737419454698,-500.0,0.00021889,2]
[349771499,1737419454709,-546.59,0.00021889,2]
[349771500,1737419454730,-1208.2,0.00021889,2]
[349771501,1737419454754,-500.0,0.00021889,2]
[349771502,1737419454769,-1831.04,0.00021889,2]
[349771503,1737419454785,-500.0,0.00021889,2]
[349771504,1737419454805,-500.0,0.00021889,2]
[349771505,1737419454816,-1465.95,0.00021889,2]
[349771506,1737419454828,-1779.14,0.00021889,2]
[349771507,1737419454841,-500.0,0.00021889,2]
[349771508,1737419454853,-707.97,0.00021889,2]
[349771509,1737419454869,-500.0,0.00021889,2]
[349771510,1737419454881,-1419.24,0.00021889,2]
[349771511,1737419454894,-500.0,0.00021889,2]
[349771512,1737419454906,-500.0,0.00021889,2]
[349771513,1737419454918,-661.24,0.00021889,2]
[349771514,1737419454930,-500.0,0.0002189,2]
[349771515,1737419454943,-8966.55933331,0.00021894,2]
[349771516,1737419454956,-18623.87273194,0.00021898,2]
[349771517,1737419454967,-2000.0,0.000219,2]
[349771518,1737419454979,-2000.0,0.000219,2]
[349771519,1737419454991,-2000.0,0.000219,2]
[349771520,1737419455003,-1436.08,0.000219,31]
[349771521,1737419455015,-1436.08,0.000219,31]
[349771522,1737419455027,-1436.08,0.000219,31]
[349771523,1737419455038,-1436.08,0.000219,31]
[349771524,1737419455050,-1436.08,0.000219,31]
[349771525,1737419455061,-1436.08,0.000219,31]
[349771526,1737419455073,-1436.08,0.000219,31]
[349771527,1737419455270,-1436.08,0.000219,31]
[349771528,1737419455287,-1436.08,0.000219,31]
[349771529,1737419455297,-1436.08,0.000219,31]
[349771530,1737419455307,-1436.08,0.000219,31]
[349771531,1737419455316,-1436.08,0.000219,31]
[349771532,1737419455325,-1436.08,0.000219,31]
[349771533,1737419455335,-1436.08,0.000219,31]
[349771534,1737419455345,-1436.08,0.000219,31]
[349771535,1737419455355,-1436.08,0.000219,31]
[349771536,1737419455366,-188.21563143,0.000219,2]
[349771537,1737419455375,-14596.939874,0.000219,2]
[349771538,1737419455386,-1126.49358833,0.000219,2]
[349771539,1737419455396,-1126.49358819,0.000219,2]
[349771540,1737419455405,-1126.49358819,0.000219,2]
[349771541,1737419455415,-1126.49358819,0.000219,2]
[349771542,1737419455425,-1126.49358819,0.000219,2]
[349771543,1737419455434,-1126.49358819,0.000219,2]
[349771544,1737419455443,-1126.49358819,0.000219,2]
[349771545,1737419455453,-1126.49358819,0.000219,2]
[349771546,1737419455462,-1126.49358819,0.000219,2]
[349771547,1737419455471,-1126.49358819,0.000219,2]
[349771548,1737419455483,-1126.49358819,0.000219,2]
[349771549,1737419455493,-1126.49358819,0.000219,2]
[349771550,1737419455502,-1126.49358819,0.000219,2]
[349771551,1737419455512,-1126.49358819,0.000219,2]
[349771552,1737419455521,-1126.49358819,0.000219,2]
[349771553,1737419455530,-1126.49358819,0.000219,2]
[349771554,1737419455540,-1126.49358819,0.000219,2]
[349771555,1737419455549,-1126.49358819,0.000219,2]
[349771556,1737419455558,-1126.49358819,0.000219,2]
[349771557,1737419455577,-1126.49358819,0.000219,2]
[349771558,1737419455588,-328.80498662,0.000219,3]
[349771559,1737419455598,-500.0,0.00021917,3]
[349771560,1737419455608,-928.62,0.00021917,2]
[349771561,1737419455618,-1662.47,0.00021917,2]
[349771562,1737419455628,-852.81,0.00021917,2]
[349771563,1737419455639,-647.99,0.00021917,2]
[349771564,1737419455649,-1964.8,0.00021917,2]
[349771565,1737419455659,-1260.29,0.00021917,2]
[349771566,1737419455670,-1244.44,0.00021917,2]
[349771567,1737419455680,-1302.24,0.00021917,2]
[349771568,1737419455690,-500.0,0.00021917,2]
[349771569,1737419455701,-918.21,0.00021917,2]
[349771570,1737419455711,-886.03,0.00021917,2]
[349771571,1737419455723,-2259.37,0.00021917,2]
[349771572,1737419455733,-1757.4,0.00021917,2]
[349771573,1737419455744,-1001.14,0.00021917,2]
[349771574,1737419455755,-1034.05,0.00021917,2]
[349771575,1737419455767,-500.0,0.00021917,2]
[349771576,1737419455777,-2979.95,0.00021917,2]
[349771577,1737419455788,-500.0,0.00021917,2]
[349771578,1737419455799,-773.56,0.00021917,2]
[349771579,1737419455810,-873.7,0.00021917,2]
[349771580,1737419455820,-1439.56,0.00021917,2]
[349771581,1737419455831,-500.0,0.00021917,2]
[349771582,1737419455841,-500.0,0.00021917,2]
[349771583,1737419455853,-500.0,0.00021917,2]
[349771584,1737419455867,-2761.08,0.00021917,2]
[349771585,1737419455880,-500.0,0.00021917,2]
[349771586,1737419455892,-4000.0,0.00021918,2]
[349771587,1737419455902,-150.0,0.00021918,2]
[349771588,1737419455913,-500.0,0.00021918,2]
[349771589,1737419455923,-398.8967656,0.0002192,2]
[349771590,1737419455933,-398.8967656,0.0002192,2]
[349771591,1737419455943,-398.8967656,0.0002192,2]
[349771592,1737419455952,-398.8967656,0.0002192,2]
[349771593,1737419455962,-398.8967656,0.0002192,2]
[349771594,1737419455971,-398.8967656,0.0002192,2]
[349771595,1737419455981,-398.8967656,0.0002192,2]
[349771596,1737419455990,-398.8967656,0.0002192,2]
[349771597,1737419456000,-398.8967656,0.0002192,2]
[349771598,1737419456009,-398.8967656,0.0002192,2]
[349771599,1737419456019,-398.8967656,0.0002192,2]
[349771600,1737419456030,-398.8967656,0.0002192,2]
[349771601,1737419456040,-398.8967656,0.0002192,2]
[349771602,1737419456050,-398.8967656,0.0002192,2]
[349771603,1737419456060,-398.8967656,0.0002192,2]
[349771604,1737419456069,-398.8967656,0.0002192,2]
[349771605,1737419456079,-398.8967656,0.0002192,2]
[349771606,1737419456089,-398.8967656,0.0002192,2]
[349771607,1737419456098,-398.8967656,0.0002192,2]
[349771608,1737419456108,-398.89,0.0002192,2]
[349771609,1737419456118,-930.75911973,0.0002192,2]
[349771610,1737419456128,-930.75911973,0.0002192,2]
[349771611,1737419456141,-930.75911973,0.0002192,2]
[349771612,1737419456150,-930.75911973,0.0002192,2]
[349771613,1737419456160,-930.75911973,0.0002192,2]
[349771614,1737419456170,-930.75911973,0.0002192,2]
[349771615,1737419456179,-930.75911973,0.0002192,2]
[349771616,1737419456189,-930.75911973,0.0002192,2]
[349771617,1737419456198,-930.75911973,0.0002192,2]
[349771618,1737419456207,-930.75911973,0.0002192,2]
[349771619,1737419456217,-930.75911973,0.0002192,2]
[349771620,1737419456227,-930.75911973,0.0002192,2]
[349771621,1737419456236,-930.75911973,0.0002192,2]
[349771622,1737419456246,-930.75911973,0.0002192,2]
[349771623,1737419456255,-930.75911973,0.0002192,2]
[349771624,1737419456264,-930.75911973,0.0002192,2]
[349771625,1737419456274,-930.75911973,0.0002192,2]
[349771626,1737419456284,-930.75911973,0.0002192,2]
[349771627,1737419456293,-930.75911973,0.0002192,2]
[349771628,1737419456303,-930.75,0.0002192,2]
[349771629,1737419456312,-1059.90963837,0.0002192,2]
[349771630,1737419456321,-1059.90963837,0.0002192,2]
[349771631,1737419456331,-1059.90963837,0.0002192,2]
[349771632,1737419456340,-1059.90963837,0.0002192,2]
[349771633,1737419456350,-1059.90963837,0.0002192,2]
[349771634,1737419456360,-1059.90963837,0.0002192,2]
[349771635,1737419456370,-1059.90963837,0.0002192,2]
[349771636,1737419456382,-1059.90963837,0.0002192,2]
[349771637,1737419456393,-1059.90963837,0.0002192,2]
[349771638,1737419456403,-1059.90963837,0.0002192,2]
[349771639,1737419456414,-1059.90963837,0.0002192,2]
[349771640,1737419456423,-1059.90963837,0.0002192,2]
[349771641,1737419456433,-1059.90963837,0.0002192,2]
[349771642,1737419456447,-1059.90963837,0.0002192,2]
[349771643,1737419456458,-1059.90963837,0.0002192,2]
[349771644,1737419456469,-1059.90963837,0.0002192,2]
[349771645,1737419456479,-1059.90963837,0.0002192,2]
[349771646,1737419456489,-1059.90963837,0.0002192,2]
[349771647,1737419456498,-1059.90963837,0.0002192,2]
[349771648,1737419456508,-1059.9,0.0002192,2]
[349771649,1737419456517,-2473.12248953,0.0002192,2]
[349771650,1737419456527,-2473.12248953,0.0002192,2]
[349771651,1737419456536,-2473.12248953,0.0002192,2]
[349771652,1737419456546,-2473.12248953,0.0002192,2]
[349771653,1737419456555,-2473.12248953,0.0002192,2]
[349771654,1737419456565,-2473.12248953,0.0002192,2]
[349771655,1737419456575,-2473.12248953,0.0002192,2]
[349771656,1737419456585,-2473.12248953,0.0002192,2]
[349771657,1737419456594,-2473.12248953,0.0002192,2]
[349771658,1737419456605,-2473.12248953,0.0002192,2]
[349771659,1737419456615,-2473.12248953,0.0002192,2]
[349771660,1737419456624,-2473.12248953,0.0002192,2]
[349771661,1737419456637,-2473.12248953,0.0002192,2]
[349771662,1737419456646,-2473.12248953,0.0002192,2]
[349771663,1737419456656,-2473.12248953,0.0002192,2]
[349771664,1737419456666,-2473.12248953,0.0002192,2]
[349771665,1737419456676,-2473.12248953,0.0002192,2]
[349771666,1737419456686,-2473.12248953,0.0002192,2]
[349771667,1737419456696,-2473.12248953,0.0002192,2]
[349771668,1737419456706,-2473.12,0.0002192,2]
[349771669,1737419456715,-537.38973346,0.0002192,2]
[349771670,1737419456725,-537.38973346,0.0002192,2]
[349771671,1737419456734,-537.38973346,0.0002192,2]
[349771672,1737419456744,-537.38973346,0.0002192,2]
[349771673,1737419456754,-537.38973346,0.0002192,2]
[349771674,1737419456765,-537.38973346,0.0002192,2]
[349771675,1737419456775,-537.38973346,0.0002192,2]
[349771676,1737419456785,-537.38973346,0.0002192,2]
[349771677,1737419456796,-537.38973346,0.0002192,2]
[349771678,1737419456806,-537.38973346,0.0002192,2]
[349771679,1737419456816,-537.38973346,0.0002192,2]
[349771680,1737419456826,-537.38973346,0.0002192,2]
[349771681,1737419456836,-537.38973346,0.0002192,2]
[349771682,1737419456846,-537.38973346,0.0002192,2]
[349771683,1737419456857,-537.38973346,0.0002192,2]
[349771684,1737419456871,-537.38973346,0.0002192,2]
[349771685,1737419456883,-537.38973346,0.0002192,2]
[349771686,1737419456893,-537.38973346,0.0002192,2]
[349771687,1737419456903,-537.38973346,0.0002192,2]
[349771688,1737419456913,-537.38,0.0002192,2]
[349771689,1737419456923,-1253.90937807,0.0002192,2]
[349771690,1737419456932,-1253.90937807,0.0002192,2]
[349771691,1737419456943,-1253.90937807,0.0002192,2]
[349771692,1737419456955,-1253.90937807,0.0002192,2]
[349771693,1737419456966,-1253.90937807,0.0002192,2]
[349771694,1737419456976,-1253.90937807,0.0002192,2]
[349771695,1737419456986,-1253.90937807,0.0002192,2]
[349771696,1737419456996,-1253.90937807,0.0002192,2]
[349771697,1737419457006,-1253.90937807,0.0002192,2]
[349771698,1737419457016,-1253.90937807,0.0002192,2]
[349771699,1737419457025,-1253.90937807,0.0002192,2]
[349771700,1737419457035,-1253.90937807,0.0002192,2]
[349771701,1737419457045,-1253.90937807,0.0002192,2]
[349771702,1737419457055,-1253.90937807,0.0002192,2]
[349771703,1737419457066,-1253.90937807,0.0002192,2]
[349771704,1737419457076,-1253.90937807,0.0002192,2]
[349771705,1737419457086,-1253.90937807,0.0002192,2]
[349771706,1737419457096,-1253.90937807,0.0002192,2]
[349771707,1737419457106,-1253.90937807,0.0002192,2]
[349771708,1737419457116,-1253.9,0.0002192,2]
[349771709,1737419457126,-39536.68908862,0.00021934,2]
[349771710,1737419457137,-5900.42,0.00021959,7]
[349771711,1737419457147,-5900.42,0.00021959,7]
[349771712,1737419457156,-400.0,0.0002197,2]
[349771713,1737419457166,-476.09307325,0.0002197,2]
[349771714,1737419457175,-104973.0,0.00021973,2]
[349771715,1737419457185,-500.33584631,0.00021973,2]
[349771716,1737419457194,-150.0,0.00021973,4]
[349771717,1737419457204,-150.0,0.00021973,4]
[349771718,1737419457214,-150.0,0.00021973,4]
[349771719,1737419457223,-150.40627047,0.00021973,4]
[349771720,1737419457233,-501.68978667,0.00021973,2]
[349771721,1737419457242,-500.0,0.00021973,2]
[349771722,1737419457252,-320072.20235726,0.0002198,2]
[349771723,1737419457262,-500.0,0.00021988,2]
[349771724,1737419457271,-910.58,0.00021988,2]
[349771725,1737419457281,-589.02,0.00021988,2]
[349771726,1737419457291,-500.0,0.00021988,2]
[349771727,1737419457301,-1187.29,0.00021988,2]
[349771728,1737419457311,-500.0,0.00021988,2]
[349771729,1737419457325,-370.441614,0.00021988,2]
[349771730,1737419457335,-855.81,0.00021988,2]
[349771731,1737419457344,-500.0,0.00021988,2]
[349771732,1737419457354,-626.503501,0.00021988,2]
[349771733,1737419457364,-500.0,0.00021988,2]
[349771734,1737419457374,-526.89,0.00021988,2]
[349771735,1737419457387,-1426.85,0.00021988,2]
[349771736,1737419457397,-713.77,0.00021988,2]
[349771737,1737419457407,-1128.17,0.00021988,2]
[349771738,1737419457418,-603.78,0.00021988,2]
[349771739,1737419457429,-155.24774,0.00021988,2]
[349771740,1737419457440,-500.0,0.00021988,2]
[349771741,1737419457451,-500.0,0.00021988,2]
[349771742,1737419457462,-2410.56,0.00021988,2]
[349771743,1737419457473,-229.605329,0.00021988,2]
[349771744,1737419457483,-1787.76,0.00021988,2]
[349771745,1737419457496,-1214.36,0.00021988,2]
[349771746,1737419457506,-904.45,0.00021988,2]
[349771747,1737419457516,-1963.56,0.00021988,2]
[349771748,1737419457526,-2104.66,0.00021988,2]
[349771749,1737419457536,-523.46,0.00021988,2]
[349771750,1737419457546,-160.506551,0.00021988,2]
[349771751,1737419457556,-1392.11,0.00021988,2]
[349771752,1737419457566,-1119.74,0.00021988,2]
[349771753,1737419457576,-159.243379,0.00021988,2]
[349771754,1737419457586,-2596.32,0.00021988,2]
[349771755,1737419457596,-1001.31,0.00021988,2]
[349771756,1737419457606,-154.234305,0.00021988,2]
[349771757,1737419457620,-209.023691,0.00021988,2]
[349771758,1737419457635,-1158.41,0.00021988,2]
[349771759,1737419457646,-909.85,0.00021988,2]
[349771760,1737419457656,-503.53,0.00021989,2]
[349771761,1737419457666,-500.0,0.00021989,2]
[349771762,1737419457677,-500.0,0.00021989,2]
[349771763,1737419457687,-500.0,0.00021989,2]
[349771764,1737419457697,-500.0,0.00021989,2]
[349771765,1737419457708,-500.0,0.00021989,2]
[349771766,1737419457718,-500.0,0.00021989,2]
[349771767,1737419457727,-500.0,0.00021989,2]
[349771768,1737419457737,-500.0,0.00021989,2]
[349771769,1737419457746,-105231.68292286,0.0002199,14]
[349771770,1737419457755,-200.0,0.0002199,8]
[349771771,1737419457765,-1122766.80139216,0.00021997,2]
[349771772,1737419457775,-395221.72185173,0.00021998,2]
[349771773,1737419457784,-2000.0,0.00021999,2]
[349771774,1737419457794,-150.0,0.00021999,2]
[349771775,1737419457804,-456.58944005,0.00021999,10]
[349771776,1737419457814,-2000.0,0.00021999,2]
[349771777,1737419457825,-1000.0,0.00021999,2]
[349771778,1737419457838,-2000.0,0.00021999,2]
[349771779,1737419457852,-2000.0,0.00021999,2]
[349771780,1737419457868,-500.0,0.00021999,2]
[349771781,1737419457879,-113502.72404654,0.00021999,2]
[349771782,1737419457898,-3531.60611987,0.00021999,2]
[349771783,1737419457911,-1383.52943055,0.00021999,2]
[349771784,1737419457923,-324.87988418,0.00021999,2]
[349771785,1737419457933,-1119.77,0.00021999,2]
[349771786,1737419457946,-1547.0,0.00021999,2]
[349771787,1737419457958,-1688.77555853,0.00021999,2]
[349771788,1737419457969,-211.14710454,0.00022,2]
[349771789,1737419457981,-9320752.02936512,0.00022,2]
[349771790,1737419457991,-500.0,0.00022,2]
[349771791,1737419458001,-500.0,0.00022,2]
[349771792,1737419458013,-9000.0,0.00022,2]
[349771793,1737419458023,-8709459.73796843,0.00022,2]
[349771794,1737419458414,-18366.47401777,0.00022,2]
[349771795,1737419458427,-14978.98135434,0.00022,2]
[349771796,1737419458439,-2033.53649564,0.00022,2]
[349771797,1737419458461,-500.0,0.00019178,2]
[349771798,1737419458471,-500.0,0.00020792,2]
[349771799,1737419458481,-448.75486512,0.00022,2]
[349771800,1737419458494,-5088.98513757,0.00022,2]
[349771801,1737419458506,-6341.88682425,0.00022,2]
[349771802,1737419458517,-991.37847005,0.00022,2]
[349771803,1737419458529,-852.41171819,0.00022,2]
[349771804,1737419458540,-1775.34684112,0.00022,2]
[349771805,1737419458552,-18140.10138438,0.00022,2]
[349771806,1737419458563,-41176.1312188,0.00022,2]
[349771807,1737419458578,-1189.35000005,0.00022,2]
[349771808,1737419458874,-500.0,0.00019178,2]
[349771809,1737419458885,-500.0,0.00019178,2]
[349771810,1737419458894,-173.4125878,0.00019452,2]
[349771811,1737419458907,-326.5874122,0.00019452,2]
[349771812,1737419458917,-500.0,0.00019452,2]
[349771813,1737419458926,-577.58543495,0.00019726,2]
[349771814,1737419458936,-412.37715145,0.00020519,2]
[349771815,1737419458957,-500.0,0.00019452,2]
[349771816,1737419458967,-87.62284855,0.00020519,2]
[349771817,1737419458977,-529.63784236,0.00020519,2]
[349771818,1737419458987,-500.0,0.00020793,2]
[349771819,1737419458996,-500.0,0.00021066,2]
[349771820,1737419459006,-500.0,0.00021067,2]
[349771821,1737419459015,-572.56,0.0002134,2]
[349771822,1737419459026,-500.0,0.0002134,2]
[349771823,1737419459035,-500.0,0.00021341,2]
[349771824,1737419459044,-572.56,0.00021614,2]
[349771825,1737419459053,-500.0,0.00021614,2]
[349771826,1737419459062,-500.0,0.00021615,2]
[349771827,1737419459073,-572.56,0.00021888,2]
[349771828,1737419459083,-500.0,0.00021888,2]
[349771829,1737419459092,-500.0,0.00021889,2]
[349771830,1737419459102,-222.23926153,0.000219,2]
[349771831,1737419459111,-5020192.01516266,0.00022,2]
[349771832,1737419459570,-250.0,0.00016799,2]
[349771833,1737419459580,-500.0,0.00019178,2]
[349771834,1737419459590,-500.0,0.00019178,2]
[349771835,1737419459599,-247.4944,0.00019452,2]
[349771836,1737419459611,-252.5056,0.00019452,2]
[349771837,1737419459620,-399.4644,0.00019452,2]
[349771838,1737419459637,-106.3956,0.00019452,2]
[349771839,1737419459647,-500.0,0.00019726,2]